[Event "2. Itzehoer Schach Open"]
[Site "Itzehoe, Germany"]
[Date "2023.04.29"]
[Round "2.29"]
[White "Hieke, Jonas"]
[Black "Aguike, Chidera"]
[Result "1-0"]
[TimeControl "90 min / 40 Züge + 30 min + 30 Sek pro Zug"]
[WhiteElo "1584"]
[BlackElo "1450"]

1. e4 {[%clk 01:30:59]} e5 {[%clk 01:30:53]} {[%emt 00:00:07]} 2. Nf3 {[%clk
01:31:25]} {[%emt 00:00:03]} Nc6 {[%clk 01:30:30]} {[%emt 00:00:53]} 3. Bc4
{[%clk 01:31:40]} {[%emt 00:00:15]} Bc5 {[%clk 01:30:54]} {[%emt 00:00:06]} 4.
Nc3 {[%clk 01:32:04]} {[%emt 00:00:06]} Nf6 {[%clk 01:31:12]} {[%emt 00:00:12]}
5. d3 {[%clk 01:32:28]} {[%emt 00:00:06]} d6 {[%clk 01:31:36]} {[%emt
00:00:06]} 6. Bg5 {[%clk 01:31:55]} {[%emt 00:01:03]} h6 {[%clk 01:32:00]}
{[%emt 00:00:07]} 7. Bh4 {[%clk 01:32:21]} {[%emt 00:00:04]} g5 {[%clk
01:32:22]} {[%emt 00:00:08]} 8. Bg3 {[%clk 01:31:47]} {[%emt 00:01:03]} Bg4
{[%clk 01:32:46]} {[%emt 00:00:06]} 9. h3 {[%clk 01:32:02]} {[%emt 00:00:16]}
Bh5 {[%clk 01:33:08]} {[%emt 00:00:07]} 10. Na4 {[%clk 01:29:07]} {[%emt
00:03:26]} Bb6 {[%clk 01:32:32]} {[%emt 00:01:06]} 11. Nxb6 {[%clk 01:29:09]}
{[%emt 00:00:29]} axb6 {[%clk 01:32:55]} {[%emt 00:00:06]} 12. c3 {[%clk
01:25:33]} {[%emt 00:04:06]} Qd7 {[%clk 01:32:08]} {[%emt 00:01:17]} 13. Bb5
{[%clk 01:19:43]} {[%emt 00:06:21]} Qe7 {[%clk 01:30:15]} {[%emt 00:02:23]} 14.
Bh2 {[%clk 01:13:14]} {[%emt 00:06:59]} Bg6 {[%clk 01:30:20]} {[%emt 00:00:25]}
15. g4 {[%clk 01:00:48]} {[%emt 00:12:56]} Qe6 {[%clk 01:29:14]} {[%emt
00:01:35]} 16. Bc4 {[%clk 00:55:40]} {[%emt 00:05:38]} d5 {[%clk 01:28:31]}
{[%emt 00:01:14]} 17. exd5 {[%clk 00:56:01]} {[%emt 00:00:09]} Nxd5 {[%clk
01:28:33]} {[%emt 00:00:27]} 18. Qe2 {[%clk 00:49:49]} {[%emt 00:06:42]} e4
{[%emt 00:04:53]} 19. dxe4 {[%clk 00:42:40]} {[%emt 00:04:38]} Bxe4 {[%clk
01:26:21]} {[%emt 00:01:21]} 20. O-O {[%clk 00:42:23]} {[%emt 00:00:41]} O-O-O
{[%clk 01:22:14]} {[%emt 00:04:43]} 21. Rfe1 {[%clk 00:39:47]} {[%emt
00:03:05]} Rhe8 {[%clk 01:21:12]} {[%emt 00:01:32]} 22. Nd2 {[%clk 00:40:09]}
{[%emt 00:00:08]} Bg6 {[%clk 01:19:06]} {[%emt 00:02:36]} 23. Qxe6+ {[%clk
00:38:20]} {[%emt 00:02:19]} fxe6 {[%clk 01:18:29]} {[%emt 00:01:07]} 24. Nb3
{[%clk 00:37:37]} {[%emt 00:01:13]} e5 {[%clk 01:16:54]} {[%emt 00:02:05]} 25.
Rad1 {[%clk 00:25:36]} {[%emt 00:12:30]} Nf4 {[%clk 01:15:32]} {[%emt
00:01:52]} 26. Rxd8+ {[%clk 00:26:01]} {[%emt 00:00:06]} Rxd8 {[%clk 01:14:20]}
{[%emt 00:01:42]} 27. Bxf4 {[%clk 00:26:17]} {[%emt 00:00:14]} exf4 {[%clk
01:13:55]} {[%emt 00:00:56]} 28. Re6 {[%clk 00:25:15]} {[%emt 00:01:31]} Bf7
{[%clk 01:13:37]} {[%emt 00:00:48]} 29. Rxc6 {[%clk 00:13:02]} {[%emt
00:12:43]} bxc6 {[%clk 01:14:00]} {[%emt 00:00:08]} 30. Bxf7 {[%clk 00:13:25]}
{[%emt 00:00:06]} Rd1+ {[%clk 01:14:20]} {[%emt 00:00:10]} 31. Kg2 {[%clk
00:13:43]} {[%emt 00:00:11]} Rb1 {[%clk 01:14:40]} {[%emt 00:00:10]} 32. Nd4
{[%clk 00:14:04]} {[%emt 00:00:09]} Rxb2 {[%clk 01:14:39]} {[%emt 00:00:32]} 33.
Bb3 {[%clk 00:13:04]} {[%emt 00:01:29]} c5 {[%clk 01:13:24]} {[%emt 00:01:46]}
34. Nf5 {[%clk 00:10:48]} {[%emt 00:02:45]} b5 {[%clk 01:13:18]} {[%emt
00:00:37]} 35. c4 {[%clk 00:11:12]} {[%emt 00:00:06]} bxc4 {[%clk 01:13:25]}
{[%emt 00:00:24]} 36. Bxc4 {[%clk 00:11:36]} {[%emt 00:00:05]} Rb4 {[%clk
01:13:33]} {[%emt 00:00:22]} 37. Be6+ {[%clk 00:08:57]} {[%emt 00:03:09]} Kb8
{[%clk 01:13:31]} {[%emt 00:00:32]} 38. Ne7 {[%clk 00:08:40]} {[%emt 00:00:44]}
Ra4 {[%clk 01:12:28]} {[%emt 00:01:35]} 39. Nc6+ {[%clk 00:02:50]} {[%emt
00:06:20]} Kb7 {[%clk 01:12:36]} {[%emt 00:00:24]} 40. Ne5 {[%clk 00:02:23]}
{[%emt 00:00:55]} c6 {[%clk 01:11:43]} {[%emt 00:01:25]} 41. Nd7 {[%clk
00:00:44]} {[%emt 00:02:09]} Ra5 {[%clk 01:11:28]} {[%emt 00:00:44]} 42. Bb3
{[%clk 00:29:25]} {[%emt 00:01:47]} Kc7 {[%clk 01:40:46]} {[%emt 00:01:14]} 43.
Ne5 {[%clk 00:29:38]} {[%emt 00:00:17]} Ra8 {[%clk 01:39:50]} {[%emt 00:01:26]}
44. Nf7 {[%clk 00:29:42]} {[%emt 00:00:26]} Kb6 {[%clk 01:39:37]} {[%emt
00:00:44]} 45. Nxh6 {[%clk 00:29:34]} {[%emt 00:00:38]} Kb5 {[%clk 01:39:55]}
{[%emt 00:00:11]} 46. Nf7 {[%clk 00:29:46]} {[%emt 00:00:18]} Kb4 {[%clk
01:39:51]} {[%emt 00:00:35]} 47. Ne5 {[%clk 00:29:48]} {[%emt 00:00:26]} Kc3
{[%clk 01:38:12]} {[%emt 00:02:09]} 48. Kf3 {[%clk 00:29:03]} {[%emt 00:01:13]}
Re8 {[%clk 01:37:01]} {[%emt 00:01:45]} 49. Nf7 {[%clk 00:28:21]} {[%emt
00:01:10]} c4 {[%clk 01:37:04]} {[%emt 00:00:29]} 50. Bxc4 {[%clk 00:28:14]}
{[%emt 00:00:36]} Rg8 {[%clk 01:35:57]} {[%emt 00:01:37]} 51. Bb3 {[%clk
00:27:35]} {[%emt 00:01:09]} c5 {[%clk 01:35:47]} {[%emt 00:00:39]} 52. Nd6
{[%clk 00:27:38]} {[%emt 00:00:27]} Rh8 {[%clk 01:35:48]} {[%emt 00:00:30]} 53.
Ne4+ {[%clk 00:27:24]} {[%emt 00:00:44]} Kd4 {[%clk 01:35:31]} {[%emt
00:00:48]} 54. Nxg5 {[%clk 00:26:44]} {[%emt 00:01:08]} c4 {[%clk 01:35:39]}
{[%emt 00:00:23]} 55. Bd1 {[%clk 00:24:45]} {[%emt 00:02:28]} c3 {[%clk
01:35:48]} {[%emt 00:00:22]} 56. Bc2 {[%clk 00:22:32]} {[%emt 00:02:42]} Rb8
{[%clk 01:36:09]} {[%emt 00:00:09]} 57. Ne6+ {[%clk 00:22:46]} {[%emt
00:00:16]} Ke5 {[%clk 01:36:20]} {[%emt 00:00:20]} 58. Nc5 {[%clk 00:23:08]}
{[%emt 00:00:07]} Rh8 {[%clk 01:36:27]} {[%emt 00:00:23]} 59. Nd3+ {[%clk
00:23:18]} {[%emt 00:00:19]} Kd4 {[%clk 01:36:45]} {[%emt 00:00:13]} 60. Nxf4
{[%clk 00:23:32]} {[%emt 00:00:16]} Rf8 {[%clk 01:36:55]} {[%emt 00:00:20]} 61.
Kg3 {[%clk 00:23:16]} {[%emt 00:01:33]} Rb8 {[%clk 01:36:40]} {[%emt 00:00:47]}
62. Nd3 {[%clk 00:23:07]} {[%emt 00:00:38]} Re8 {[%clk 01:37:01]} {[%emt
00:00:09]} 63. g5 {[%clk 00:20:59]} {[%emt 00:02:38]} Re2 {[%clk 01:37:20]}
{[%emt 00:00:12]} 64. g6 {[%clk 00:21:11]} {[%emt 00:00:18]} Rxc2 {[%clk
01:37:29]} {[%emt 00:00:21]} 65. g7 {[%clk 00:21:23]} {[%emt 00:00:18]} Kxd3
{[%clk 01:37:55]} {[%emt 00:00:05]} 66. g8=Q {[%clk 00:21:42]} {[%emt
00:00:09]} Rb2 {[%clk 01:38:15]} {[%emt 00:00:11]} 67. Qd5+ {[%clk 00:21:56]}
{[%emt 00:00:14]} Ke2 {[%clk 01:38:12]} {[%emt 00:00:35]} 68. Qf3+ {[%clk
00:22:13]} {[%emt 00:00:11]} Kd2 {[%clk 01:38:35]} {[%emt 00:00:08]} 69. Qe3+
{[%clk 00:22:24]} {[%emt 00:00:18]} Kc2 {[%clk 01:38:53]} {[%emt 00:00:14]} 70.
Qe2+ {[%clk 00:22:05]} {[%emt 00:00:48]} Kc1 {[%clk 01:38:57]} {[%emt
00:00:26]} 71. Qe1+ {[%clk 00:21:55]} {[%emt 00:00:31]} Kc2 {[%clk 01:39:23]}
{[%emt 00:00:13]} 72. h4 {[%clk 00:20:56]} {[%emt 00:01:29]} Rxa2 {[%clk
01:39:40]} {[%emt 00:00:12]} 73. Kf3 {[%clk 00:20:19]} {[%emt 00:01:06]} Kb2
{[%clk 01:39:50]} {[%emt 00:00:21]} 74. Qe5 {[%clk 00:19:54]} {[%emt 00:00:52]}
Ra3 {[%clk 01:39:49]} {[%emt 00:00:33]} 75. Ke2 {[%clk 00:19:40]} {[%emt
00:00:44]} Kb1 {[%clk 01:38:51]} {[%emt 00:01:28]} 76. Qb5+ {[%clk 00:17:22]}
{[%emt 00:02:48]} Kc1 {[%clk 01:38:29]} {[%emt 00:00:51]} 77. h5 {[%clk
00:17:10]} {[%emt 00:00:43]} c2 {[%clk 01:38:34]} {[%emt 00:00:25]} 78. h6
{[%clk 00:17:26]} {[%emt 00:00:14]} Rh3 {[%clk 01:38:41]} {[%emt 00:00:23]} 79.
Qb6 {[%clk 00:17:17]} {[%emt 00:00:38]} Rh1 {[%clk 01:38:27]} {[%emt 00:00:44]}
80. Qc6 {[%clk 00:16:11]} {[%emt 00:01:37]} Kb1 {[%clk 01:38:45]} {[%emt
00:00:12]} 81. Qxh1+ {[%clk 00:16:31]} {[%emt 00:00:10]} c1=Q {[%clk 01:39:00]}
{[%emt 00:00:16]} 82. Qxc1+ {[%clk 00:16:54]} {[%emt 00:00:06]} Kxc1 {[%clk
01:39:23]} {[%emt 00:00:07]} 83. h7 {[%clk 00:17:17]} {[%emt 00:00:08]} Kb1
{[%clk 01:39:44]} {[%emt 00:00:08]} 84. h8=Q {[%clk 00:17:31]} {[%emt
00:00:16]} Kc2 {[%clk 01:40:09]} {[%emt 00:00:06]} 85. Qc8+ {[%clk 00:17:48]}
{[%emt 00:00:12]} Kb2 {[%clk 01:40:20]} {[%emt 00:00:20]} 86. Kd2 {[%clk
00:18:07]} {[%emt 00:00:11]} Ka1 {[%clk 01:40:43]} {[%emt 00:00:07]} 87. Kc2
{[%clk 00:18:21]} {[%emt 00:00:15]} Ka2 {[%clk 01:41:06]} {[%emt 00:00:08]} 88.
Qa8# {[%clk 00:18:15]} {[%emt 00:00:05]} 1-0

[Event "2. Itzehoer Schach Open"]
[Site "Itzehoe, Germany"]
[Date "2023.04.29"]
[Round "2.1"]
[White "Carlstedt, Jonathan"]
[Black "Kitschke, Heiko"]
[Result "1-0"]
[TimeControl "90 min / 40 Züge + 30 min + 30 Sek pro Zug"]
[WhiteElo "2452"]
[BlackElo "2027"]

1. Nf3 {[%clk 01:30:58]} {[%emt 00:00:01]} d5 {[%clk 01:30:43]} {[%emt
00:00:18]} 2. e3 {[%clk 01:31:22]} {[%emt 00:00:05]} Nf6 {[%clk 01:30:25]}
{[%emt 00:00:48]} 3. c4 {[%clk 01:31:46]} {[%emt 00:00:06]} e6 {[%clk
01:30:26]} {[%emt 00:00:30]} 4. Nc3 {[%clk 01:32:10]} {[%emt 00:00:05]} Be7
{[%clk 01:29:55]} {[%emt 00:01:02]} 5. b3 {[%clk 01:32:30]} {[%emt 00:00:10]}
c6 {[%clk 01:29:41]} {[%emt 00:00:44]} 6. Bb2 {[%clk 01:32:53]} {[%emt
00:00:06]} Nbd7 {[%clk 01:29:15]} {[%emt 00:00:56]} 7. Qc2 {[%clk 01:33:04]}
{[%emt 00:00:19]} O-O {[%clk 01:27:35]} {[%emt 00:02:11]} 8. Be2 {[%clk
01:12:22]} {[%emt 00:21:12]} b6 {[%clk 01:24:46]} {[%emt 00:03:18]} 9. g4
{[%clk 01:06:00]} {[%emt 00:06:52]} dxc4 {[%clk 01:14:41]} {[%emt 00:10:36]} 10.
bxc4 {[%clk 01:06:09]} {[%emt 00:00:21]} Bb7 {[%clk 01:14:05]} {[%emt
00:01:05]} 11. g5 {[%clk 01:04:11]} {[%emt 00:02:29]} Ne8 {[%clk 01:11:27]}
{[%emt 00:03:07]} 12. h4 {[%clk 01:03:38]} {[%emt 00:01:03]} c5 {[%clk
01:03:56]} {[%emt 00:08:02]} 13. Rh3 {[%clk 01:03:48]} {[%emt 00:00:19]} f6
{[%clk 00:59:57]} {[%emt 00:04:30]} 14. gxf6 {[%clk 01:02:15]} {[%emt
00:02:02]} Ndxf6 {[%clk 00:58:56]} {[%emt 00:01:31]} 15. Ng5 {[%clk 01:02:20]}
{[%emt 00:00:25]} Qd7 {[%clk 00:57:49]} {[%emt 00:01:36]} 16. Bg4 {[%clk
01:00:42]} {[%emt 00:02:09]} Nc7 {[%clk 00:56:33]} {[%emt 00:01:47]} 17. Nb5
{[%clk 00:53:48]} {[%emt 00:07:24]} Be4 {[%clk 00:52:51]} {[%emt 00:04:11]} 18.
Nxe4 {[%clk 00:54:09]} {[%emt 00:00:10]} Nxg4 {[%clk 00:52:00]} {[%emt
00:01:21]} 19. Nxc7 {[%clk 00:46:39]} {[%emt 00:07:59]} Qxc7 {[%clk 00:50:00]}
{[%emt 00:02:31]} 20. Ng5 {[%clk 00:46:52]} {[%emt 00:00:16]} Bxg5 {[%clk
00:40:02]} {[%emt 00:10:28]} 21. hxg5 {[%clk 00:46:51]} {[%emt 00:00:31]} g6
{[%clk 00:37:25]} {[%emt 00:03:06]} 22. f3 {[%clk 00:44:57]} {[%emt 00:02:24]}
Ne5 {[%clk 00:32:26]} {[%emt 00:05:30]} 23. f4 {[%clk 00:44:58]} {[%emt
00:00:29]} Nc6 {[%clk 00:31:29]} {[%emt 00:01:25]} 24. Qxg6+ {[%clk 00:44:24]}
{[%emt 00:01:06]} hxg6 {[%clk 00:31:05]} {[%emt 00:00:54]} 25. Rh8+ {[%clk
00:44:50]} {[%emt 00:00:04]} Kf7 {[%clk 00:31:02]} {[%emt 00:00:34]} 26. Rh7+
{[%clk 00:45:12]} {[%emt 00:00:06]} Ke8 {[%clk 00:28:37]} {[%emt 00:02:55]} 27.
Rxc7 {[%clk 00:45:33]} {[%emt 00:00:09]} Nb4 {[%clk 00:26:02]} {[%emt
00:03:06]} 28. Ke2 {[%clk 00:45:47]} {[%emt 00:00:15]} Rf7 {[%clk 00:25:09]}
{[%emt 00:01:24]} 29. Rxf7 {[%clk 00:46:09]} {[%emt 00:00:08]} Kxf7 {[%clk
00:25:26]} {[%emt 00:00:13]} 30. Rh1 {[%clk 00:46:33]} {[%emt 00:00:05]} 1-0

[Event "2. Itzehoer Schach Open"]
[Site "Itzehoe, Germany"]
[Date "2023.04.29"]
[Round "2.28"]
[White "Steiner, Peter Markus"]
[Black "Fuhrmann, Jeppe"]
[Result "0-1"]
[TimeControl "90 min / 40 Züge + 30 min + 30 Sek pro Zug"]
[WhiteElo "1603"]
[BlackElo "1379"]

1. b4 {[%clk 01:30:27]} {[%emt 00:00:33]} e5 {[%clk 01:29:58]} {[%emt
00:01:02]} 2. Bb2 {[%clk 01:30:46]} {[%emt 00:00:11]} d6 {[%clk 01:28:46]}
{[%emt 00:01:43]} 3. e3 {[%clk 01:30:22]} {[%emt 00:00:53]} Nc6 {[%clk
01:28:00]} {[%emt 00:01:16]} 4. b5 {[%clk 01:29:55]} {[%emt 00:00:57]} Nce7
{[%clk 01:28:00]} {[%emt 00:00:31]} 5. c4 {[%clk 01:30:06]} {[%emt 00:00:18]}
Nf6 {[%clk 01:24:42]} {[%emt 00:03:49]} 6. Nc3 {[%clk 01:25:02]} {[%emt
00:05:34]} Ng6 {[%clk 01:16:47]} {[%emt 00:08:25]} 7. Nf3 {[%clk 01:25:02]}
{[%emt 00:00:29]} Be7 {[%clk 01:15:50]} {[%emt 00:01:28]} 8. d4 {[%clk
01:23:36]} {[%emt 00:01:55]} Bf5 {[%clk 01:11:46]} {[%emt 00:04:34]} 9. Be2
{[%clk 01:22:52]} {[%emt 00:01:15]} h6 {[%clk 01:07:07]} {[%emt 00:05:09]} 10.
a4 {[%clk 01:19:25]} {[%emt 00:03:56]} c6 {[%clk 01:04:55]} {[%emt 00:02:42]}
11. O-O {[%clk 01:18:44]} {[%emt 00:01:11]} O-O {[%clk 01:01:24]} {[%emt
00:04:02]} 12. Qb3 {[%clk 01:15:02]} {[%emt 00:04:10]} Qc7 {[%clk 00:56:01]}
{[%emt 00:05:54]} 13. Rac1 {[%clk 01:14:42]} {[%emt 00:00:47]} Rac8 {[%clk
00:51:20]} {[%emt 00:05:14]} 14. Rfd1 {[%clk 01:02:46]} {[%emt 00:12:26]} Rfd8
{[%clk 00:46:40]} {[%emt 00:05:10]} 15. Ba3 {[%clk 00:44:55]} {[%emt 00:18:21]}
Qb6 {[%clk 00:37:16]} {[%emt 00:09:54]} 16. dxe5 {[%clk 00:39:59]} {[%emt
00:05:27]} dxe5 {[%clk 00:35:02]} {[%emt 00:02:44]} 17. Bxe7 {[%clk 00:39:56]}
{[%emt 00:00:33]} Rxd1+ {[%clk 00:34:41]} {[%emt 00:00:50]} 18. Rxd1 {[%clk
00:38:56]} {[%emt 00:01:30]} Nxe7 {[%clk 00:34:35]} {[%emt 00:00:37]} 19. Nxe5
{[%clk 00:37:32]} {[%emt 00:01:54]} Qc7 {[%clk 00:31:38]} {[%emt 00:03:26]} 20.
Nf3 {[%clk 00:35:34]} {[%emt 00:02:28]} Be6 {[%clk 00:30:27]} {[%emt 00:01:41]}
21. Nd4 {[%clk 00:34:44]} {[%emt 00:01:20]} Ng4 {[%clk 00:27:44]} {[%emt
00:03:13]} 22. g3 {[%clk 00:31:23]} {[%emt 00:03:50]} Ne5 {[%clk 00:27:55]}
{[%emt 00:00:20]} 23. Nxe6 {[%clk 00:30:08]} {[%emt 00:01:44]} fxe6 {[%clk
00:28:19]} {[%emt 00:00:07]} 24. f4 {[%clk 00:27:58]} {[%emt 00:02:40]} Nd7
{[%clk 00:28:10]} {[%emt 00:00:39]} 25. Ne4 {[%clk 00:18:39]} {[%emt 00:09:48]}
Nb6 {[%clk 00:25:59]} {[%emt 00:02:42]} 26. a5 {[%clk 00:13:27]} {[%emt
00:05:43]} Nd7 {[%clk 00:25:53]} {[%emt 00:00:36]} 27. Nd6 {[%clk 00:10:30]}
{[%emt 00:03:26]} Rd8 {[%clk 00:25:12]} {[%emt 00:01:11]} 28. Qc3 {[%clk
00:09:03]} {[%emt 00:01:55]} Nc5 {[%clk 00:23:02]} {[%emt 00:02:41]} 29. Qe5
{[%clk 00:03:39]} {[%emt 00:05:55]} cxb5 {[%clk 00:20:42]} {[%emt 00:02:51]} 30.
cxb5 {[%clk 00:02:22]} {[%emt 00:01:46]} b6 {[%clk 00:18:42]} {[%emt 00:02:31]}
31. axb6 {[%clk 00:02:32]} {[%emt 00:00:20]} axb6 {[%clk 00:18:55]} {[%emt
00:00:17]} 32. Rd4 {[%clk 00:01:50]} {[%emt 00:01:11]} Nd5 {[%clk 00:18:02]}
{[%emt 00:01:23]} 33. Rxd5 {[%clk 00:01:46]} {[%emt 00:00:34]} exd5 {[%clk
00:17:20]} {[%emt 00:01:12]} 34. Qxd5+ {[%clk 00:02:10]} {[%emt 00:00:06]} Kh7
{[%clk 00:17:30]} {[%emt 00:00:20]} 35. Bc4 {[%clk 00:00:37]} {[%emt 00:02:03]}
Qxd6 {[%clk 00:16:17]} {[%emt 00:01:43]} 0-1

[Event "2. Itzehoer Schach Open"]
[Site "Itzehoe, Germany"]
[Date "2023.04.29"]
[Round "2.6"]
[White "Roebers, Jan"]
[Black "Helms, Finn"]
[Result "1-0"]
[TimeControl "90 min / 40 Züge + 30 min + 30 Sek pro Zug"]
[WhiteElo "2083"]
[BlackElo "2002"]

1. e4 {[%clk 01:29:32]} {[%emt 00:01:26]} c6 {[%clk 01:30:59]} {[%emt
00:00:02]} 2. Nf3 {[%clk 01:27:42]} {[%emt 00:02:20]} d5 {[%clk 01:31:24]}
{[%emt 00:00:05]} 3. exd5 {[%clk 01:27:42]} {[%emt 00:00:30]} cxd5 {[%clk
01:31:46]} {[%emt 00:00:09]} 4. Ne5 {[%clk 01:27:57]} {[%emt 00:00:14]} Nc6
{[%clk 01:32:09]} {[%emt 00:00:07]} 5. Bb5 {[%clk 01:27:49]} {[%emt 00:00:38]}
Bd7 {[%clk 01:32:32]} {[%emt 00:00:07]} 6. Nxd7 {[%clk 01:27:46]} {[%emt
00:00:32]} Qxd7 {[%clk 01:32:59]} {[%emt 00:00:03]} 7. d4 {[%clk 01:27:19]}
{[%emt 00:00:58]} a6 {[%clk 01:33:24]} {[%emt 00:00:06]} 8. Be2 {[%clk
01:27:12]} {[%emt 00:00:36]} Nf6 {[%clk 01:32:22]} {[%emt 00:01:32]} 9. O-O
{[%clk 01:25:43]} {[%emt 00:01:59]} e6 {[%clk 01:32:40]} {[%emt 00:00:11]} 10.
Bf4 {[%clk 01:23:22]} {[%emt 00:02:51]} Bd6 {[%clk 01:32:40]} {[%emt 00:00:31]}
11. Bxd6 {[%clk 01:22:37]} {[%emt 00:01:14]} Qxd6 {[%clk 01:33:09]} {[%emt
00:00:02]} 12. c3 {[%clk 01:22:10]} {[%emt 00:00:57]} O-O {[%clk 01:31:26]}
{[%emt 00:02:13]} 13. Nd2 {[%clk 01:21:00]} {[%emt 00:01:40]} b5 {[%clk
01:30:16]} {[%emt 00:01:40]} 14. a3 {[%clk 01:17:48]} {[%emt 00:03:42]} Na5
{[%clk 01:25:22]} {[%emt 00:05:23]} 15. b4 {[%clk 01:10:58]} {[%emt 00:07:21]}
Nc4 {[%clk 01:19:29]} {[%emt 00:06:23]} 16. Nb3 {[%clk 01:10:56]} {[%emt
00:00:32]} Ne4 {[%clk 01:16:57]} {[%emt 00:03:02]} 17. Qc2 {[%clk 01:10:28]}
{[%emt 00:00:56]} f5 {[%clk 01:13:59]} {[%emt 00:03:30]} 18. a4 {[%clk
00:55:42]} {[%emt 00:15:16]} Qf4 {[%clk 01:10:38]} {[%emt 00:03:50]} 19. axb5
{[%clk 00:45:26]} {[%emt 00:10:47]} axb5 {[%clk 01:11:00]} {[%emt 00:00:08]} 20.
Bxc4 {[%clk 00:45:35]} {[%emt 00:00:21]} bxc4 {[%clk 01:03:45]} {[%emt
00:07:45]} 21. Nc5 {[%clk 00:45:40]} {[%emt 00:00:25]} Nxc5 {[%clk 00:31:54]}
{[%emt 00:32:21]} 22. bxc5 {[%clk 00:41:47]} {[%emt 00:04:23]} Rxa1 {[%clk
00:25:11]} {[%emt 00:07:14]} 23. Rxa1 {[%clk 00:42:11]} {[%emt 00:00:06]} Rb8
{[%clk 00:25:28]} {[%emt 00:00:12]} 24. Re1 {[%clk 00:31:05]} {[%emt 00:11:35]}
Re8 {[%clk 00:24:22]} {[%emt 00:01:36]} 25. g3 {[%clk 00:27:51]} {[%emt
00:03:45]} Qc7 {[%clk 00:22:46]} {[%emt 00:02:05]} 26. Qa4 {[%clk 00:24:58]}
{[%emt 00:03:23]} Kf7 {[%emt 00:05:05]} 27. f4 {[%clk 00:21:42]} h6 {[%clk
00:21:21]} {[%emt 00:01:07]} 28. Qa6 {[%clk 00:17:18]} {[%emt 00:04:53]} g5
{[%clk 00:18:34]} {[%emt 00:03:18]} 29. Rb1 {[%clk 00:17:26]} {[%emt 00:00:22]}
Re7 {[%clk 00:15:32]} {[%emt 00:03:32]} 30. fxg5 {[%clk 00:16:27]} {[%emt
00:01:29]} hxg5 {[%clk 00:15:27]} {[%emt 00:00:35]} 31. c6 {[%clk 00:14:31]}
{[%emt 00:02:27]} Qd6 {[%clk 00:14:36]} {[%emt 00:01:20]} 32. Rb7 {[%clk
00:14:18]} {[%emt 00:00:44]} Rxb7 {[%clk 00:12:54]} {[%emt 00:02:12]} 33. Qxb7+
{[%clk 00:14:38]} {[%emt 00:00:09]} Kg6 {[%clk 00:12:21]} {[%emt 00:01:02]} 34.
Qd7 {[%clk 00:12:29]} {[%emt 00:02:40]} Qa3 {[%clk 00:12:24]} {[%emt 00:00:27]}
35. Qxe6+ {[%clk 00:12:42]} {[%emt 00:00:17]} Kg7 {[%clk 00:12:07]} {[%emt
00:00:47]} 36. c7 {[%clk 00:10:40]} {[%emt 00:02:30]} Qc1+ {[%clk 00:08:34]}
{[%emt 00:04:05]} 37. Kf2 {[%clk 00:09:51]} {[%emt 00:01:18]} Qb2+ {[%clk
00:08:43]} {[%emt 00:00:21]} 38. Kg1 {[%clk 00:07:58]} {[%emt 00:02:23]} Qc1+
{[%clk 00:09:05]} {[%emt 00:00:08]} 39. Kf2 {[%clk 00:07:38]} {[%emt 00:00:49]}
Qb2+ {[%clk 00:09:30]} {[%emt 00:00:06]} 40. Qe2 {[%clk 00:07:53]} {[%emt
00:00:14]} Qb7 {[%clk 00:08:06]} {[%emt 00:01:54]} 41. Qe7+ {[%clk 00:07:39]}
{[%emt 00:00:44]} 1-0